lending/lending_fUSD_20241228
["ID","MTS","AMOUNT","RATE_DAILY","PERIOD"]
[346909081,1735360238992,-500.0,0.00012799,2]
[346909082,1735360239002,-3241.13548707,0.000128,2]
[346909084,1735360239011,-201964.20192887,0.000128,2]
[346909087,1735360239026,-318.03852309,0.000128,2]
[346909183,1735360239997,-487.46,0.000128,2]
[346909190,1735360240053,-372.97432868,0.000128,2]
[346909192,1735360240064,-435.28418446,0.000128,2]
[346909198,1735360240112,-473.33495,0.000128,2]
[346909262,1735360243213,-373.04,0.00012799,2]
[346909263,1735360243224,-247.58004,0.00012799,2]
[346909264,1735360243267,-192.22504533,0.00012799,2]
[346909265,1735360243276,-3717.91541211,0.000128,2]
[346909282,1735360246213,-29216.52657937,0.000128,2]
[346909283,1735360246224,-2253.75461112,0.000128,2]
[346909284,1735360246235,-681.0,0.000128,2]
[346909285,1735360246267,-266.5091116,0.000128,2]
[346909289,1735360655176,157.89,9.303e-05,2]
[346909291,1735361001354,350.6,9.534e-05,2]
[346909298,1735361193966,-500.0,0.00018,60]
[346909319,1735361432262,-329.79,0.00010137,2]
[346909320,1735361432273,-36.24,0.00011287,2]
[346909321,1735361432284,-263.76,0.00011287,2]
[346909322,1735361432293,-380.49,0.00011288,2]
[346909323,1735361432303,-144.25,0.00011288,2]
[346909324,1735361432326,-229.15,0.00011288,2]
[346909325,1735361432335,-379.08,0.00011288,2]
[346909326,1735361432345,-374.95,0.00011288,2]
[346909327,1735361432355,-375.01,0.00011288,2]
[346909328,1735361432364,-378.46,0.00011288,2]
[346909329,1735361432374,-378.2,0.00011288,2]
[346909330,1735361432383,-381.64,0.00011288,2]
[346909331,1735361432393,-372.41,0.00011288,2]
[346909332,1735361432403,-378.91,0.00011288,2]
[346909333,1735361432413,-374.09,0.00011288,2]
[346909334,1735361432422,-372.39,0.00011288,2]
[346909335,1735361432432,-368.31,0.00011288,2]
[346909336,1735361432440,-371.94,0.00011288,2]
[346909337,1735361432450,-1180.93206973,0.00011288,2]
[346909338,1735361432459,-1180.93206973,0.00011288,2]
[346909339,1735361432468,-1180.93206973,0.00011288,2]
[346909340,1735361432479,-1180.93206973,0.00011288,2]
[346909341,1735361432488,-1180.93206973,0.00011288,2]
[346909342,1735361432498,-1180.93206973,0.00011288,2]
[346909343,1735361432507,-1180.93206973,0.00011288,2]
[346909344,1735361432516,-1180.93206973,0.00011288,2]
[346909345,1735361432526,-1180.93206973,0.00011288,2]
[346909346,1735361432535,-1180.93106973,0.00011288,2]
[346909347,1735361432544,-312.3,0.000114,2]
[346909348,1735361432554,-250.0,0.00011417,2]
[346909349,1735361432564,-291.32,0.00011462,2]
[346909350,1735361432573,-1000.0,0.00011619,2]
[346909351,1735361432583,-1200.37570421,0.00011625,2]
[346909352,1735361432591,-161.92,0.00011659,2]
[346909353,1735361432601,-177.012574,0.00011669,2]
[346909354,1735361432610,-216.49075896,0.00011689,2]
[346909355,1735361432620,-169.85,0.00011773,2]
[346909356,1735361432630,-150.0,0.00011789,2]
[346909357,1735361432640,-350.6,0.00011798,2]
[346909359,1735361432649,-16383.16,0.00011803,2]
[346909361,1735361432659,-150.0,0.00011811,2]
[346909363,1735361432668,-300.0,0.000119,4]
[346909364,1735361432677,-150.0,0.00011918,2]
[346909367,1735361432686,-150.0,0.00011919,2]
[346909369,1735361432696,-150.0,0.00011993,2]
[346909371,1735361432706,-600.0,0.00012,4]
[346909373,1735361432715,-150.0,0.00012038,2]
[346909375,1735361432724,-209.0,0.0001209,2]
[346909377,1735361432734,-900.0,0.000121,4]
[346909378,1735361432743,-511.196,0.0001216,2]
[346909380,1735361432753,-150.0,0.00012175,2]
[346909382,1735361432763,-436.52,0.00012178,2]
[346909384,1735361432772,-1985.27,0.00012178,2]
[346909385,1735361432782,-150.0,0.00012192,2]
[346909388,1735361432791,-1200.0,0.000122,4]
[346909390,1735361432801,-150.0,0.00012293,2]
[346909391,1735361432810,-150.0,0.00012297,2]
[346909394,1735361432820,-1600.0,0.000123,4]
[346909396,1735361432830,-150.0,0.00012336,2]
[346909398,1735361432840,-300.0,0.000124,4]
[346909400,1735361432850,-150.0,0.00012403,2]
[346909402,1735361432859,-150.0,0.0001241,2]
[346909404,1735361432868,-1269.471,0.00012413,2]
[346909405,1735361432877,-816.0,0.00012413,2]
[346909407,1735361432887,-150.0,0.00012413,2]
[346909409,1735361432896,-3890.0,0.00012413,2]
[346909412,1735361432905,-974.826,0.00012413,2]
[346909414,1735361432915,-209.0,0.0001246,2]
[346909415,1735361432924,-150.0,0.00012479,2]
[346909417,1735361432934,-429.2501615,0.00012481,2]
[346909420,1735361432944,-150.0,0.00012487,2]
[346909422,1735361432953,-300.0,0.000125,4]
[346909423,1735361432962,-150.0,0.0001252,2]
[346909425,1735361432972,-150.0,0.00012533,2]
[346909427,1735361432981,-200.0,0.00012576,2]
[346909429,1735361432990,-2199.981,0.00012589,2]
[346909431,1735361433004,-163.559,0.00012589,2]
[346909433,1735361433014,-300.0,0.000126,4]
[346909435,1735361433024,-3642.0,0.00012603,2]
[346909436,1735361433035,-971.88109058,0.00012608,2]
[346909437,1735361433044,-150.0,0.00012635,2]
[346909438,1735361433054,-994.11531,0.0001267,2]
[346909439,1735361433066,-922.25690543,0.0001268,2]
[346909440,1735361433078,-743.2863,0.00012698,2]
[346909441,1735361433090,-53292.2025,0.00012698,2]
[346909442,1735361433100,-162.06425647,0.00012699,2]
[346909443,1735361433110,-1000.0,0.00012699,2]
[346909444,1735361433120,-2915.55671543,0.000127,2]
[346909445,1735361433161,-417.98026338,0.000127,2]
[346909446,1735361433194,-992.18563616,0.000127,2]
[346909452,1735361438371,-0.05827684,0.00011288,2]
[346909453,1735361438443,-370.64172316,0.00011288,2]
[346909454,1735361438453,-3425.10034518,0.000127,2]
[346909465,1735361440176,-651.0,0.000127,2]
[346909466,1735361440231,-343.88842845,0.000127,2]
[346909467,1735361440446,-1288.02913781,0.000127,2]
[346909487,1735361443274,-16796.5545113,0.000127,2]
[346909488,1735361443286,-5923.35016229,0.000127,2]
[346909489,1735361443296,-3930.903635,0.000127,2]
[346909490,1735361443307,-1.74620271,0.000127,2]
[346909491,1735361443379,-29998.25379729,0.000127,2]
[346909492,1735361443389,-300.0,0.000127,4]
[346909493,1735361443398,-150.0,0.00012767,2]
[346909494,1735361443407,-500.0,0.00012773,2]
[346909495,1735361443416,-503.44354772,0.00012773,2]
[346909496,1735361443426,-150.0,0.00012773,2]
[346909497,1735361443435,-150.0,0.00012796,2]
[346909498,1735361443445,-1001.2966,0.00012797,2]
[346909499,1735361443454,-500.0,0.00012798,2]
[346909500,1735361443464,-502.02876957,0.00012798,2]
[346909501,1735361443473,-503.67055906,0.00012798,2]
[346909502,1735361443482,-503.61888562,0.00012798,2]
[346909503,1735361443491,-500.90025711,0.00012798,2]
[346909504,1735361443500,-501.89600298,0.00012798,2]
[346909505,1735361443510,-501.94760013,0.00012798,2]
[346909506,1735361443519,-464.4419548,0.00012798,2]
[346909507,1735361443527,-501.18565659,0.00012798,2]
[346909508,1735361443537,-500.0,0.00012798,2]
[346909509,1735361443547,-614.84583814,0.00012798,2]
[346909510,1735361443556,-501.78372502,0.00012798,2]
[346909511,1735361443565,-500.53602412,0.00012798,2]
[346909512,1735361443575,-502.27236779,0.00012798,2]
[346909513,1735361443584,-154.46926038,0.00012798,2]
[346909515,1735361443602,-345.53073962,0.00012798,2]
[346909517,1735361443612,-502.43928078,0.00012798,2]
[346909519,1735361443621,-571.93725119,0.00012798,2]
[346909520,1735361443631,-500.0,0.00012798,2]
[346909521,1735361443640,-500.0,0.00012798,2]
[346909522,1735361443649,-500.0,0.00012798,2]
[346909525,1735361443659,-500.0,0.00012798,2]
[346909527,1735361443668,-500.0,0.00012798,2]
[346909528,1735361443677,-500.0,0.00012798,2]
[346909529,1735361443687,-159.68887,0.00012798,2]
[346909530,1735361443696,-156.140319,0.00012798,2]
[346909531,1735361443706,-2597.993842,0.00012798,2]
[346909532,1735361443715,-2654.803918,0.00012798,2]
[346909533,1735361443724,-500.0,0.00012798,2]
[346909534,1735361443734,-500.0,0.00012798,2]
[346909535,1735361443743,-500.0,0.00012798,2]
[346909536,1735361443752,-151.0,0.00012798,2]
[346909537,1735361443764,-500.0,0.00012798,2]
[346909538,1735361443773,-250.14610263,0.00012798,2]
[346909539,1735361443791,-249.85389737,0.00012798,2]
[346909540,1735361443801,-402.66597063,0.00012798,2]
[346909541,1735361446265,-97.33402937,0.00012798,2]
[346909542,1735361446275,-151.0,0.00012798,2]
[346909543,1735361446284,-151.0,0.00012798,2]
[346909544,1735361446294,-151.0,0.00012798,2]
[346909545,1735361446304,-605.53519647,0.00012798,2]
[346909546,1735361446313,-500.0,0.00012798,2]
[346909547,1735361446323,-500.0,0.00012798,2]
[346909548,1735361446332,-358.53105148,0.00012798,2]
[346909549,1735361446342,-500.0,0.00012798,2]
[346909550,1735361446352,-500.0,0.00012798,2]
[346909551,1735361446362,-500.0,0.00012798,2]
[346909552,1735361446371,-500.0,0.00012798,2]
[346909553,1735361446382,-500.0,0.00012798,2]
[346909554,1735361446392,-500.0,0.00012798,2]
[346909555,1735361446401,-500.0,0.00012798,2]
[346909556,1735361446411,-500.0,0.00012798,2]
[346909557,1735361446420,-500.0,0.00012798,2]
[346909558,1735361446430,-500.0,0.00012798,2]
[346909559,1735361446440,-547.82,0.00012798,2]
[346909560,1735361446450,-500.0,0.00012798,2]
[346909561,1735361446459,-500.0,0.00012798,2]
[346909562,1735361446469,-500.0,0.00012798,2]
[346909563,1735361446478,-500.0,0.00012798,2]
[346909564,1735361446488,-500.0,0.00012798,2]
[346909565,1735361446498,-500.0,0.00012798,2]
[346909566,1735361446507,-500.0,0.00012798,2]
[346909567,1735361446517,-500.0,0.00012798,2]
[346909568,1735361446527,-773.98,0.00012798,2]
[346909569,1735361446537,-500.0,0.00012798,2]
[346909570,1735361446546,-500.0,0.00012798,2]
[346909571,1735361446556,-500.0,0.00012798,2]
[346909572,1735361446565,-501.60939811,0.00012798,2]
[346909573,1735361446575,-500.0,0.00012798,2]
[346909574,1735361446585,-500.0,0.00012798,2]
[346909575,1735361446594,-500.0,0.00012798,2]
[346909576,1735361446605,-505.3710434,0.00012798,2]
[346909577,1735361446615,-500.0,0.00012798,2]
[346909578,1735361446625,-501.32243328,0.00012798,2]
[346909579,1735361446634,-500.0,0.00012798,2]
[346909580,1735361446643,-500.0,0.00012798,2]
[346909581,1735361446652,-500.0,0.00012798,2]
[346909582,1735361446662,-367.49684789,0.00012798,2]
[346909583,1735361446688,-200.97222406,0.00012798,2]
[346909584,1735361446697,-500.0,0.00012798,2]
[346909585,1735361446707,-500.0,0.00012798,2]
[346909586,1735361446716,-500.0,0.00012798,2]
[346909587,1735361446725,-510.42012276,0.00012798,2]
[346909588,1735361446734,-500.0,0.00012798,2]
[346909589,1735361446743,-500.0,0.00012798,2]
[346909590,1735361446753,-500.19932546,0.00012798,2]
[346909591,1735361446762,-500.0,0.00012798,2]
[346909592,1735361446771,-500.0,0.00012798,2]
[346909593,1735361446780,-500.0,0.00012798,2]
[346909594,1735361446790,-527.27,0.00012798,2]
[346909595,1735361446799,-500.0,0.00012798,2]
[346909596,1735361446809,-503.31763757,0.00012798,2]
[346909597,1735361446818,-500.0,0.00012798,2]
[346909598,1735361446829,-270.52212262,0.00012798,2]
[346909599,1735361446840,-119.96822804,0.00012798,2]
[346909600,1735361446851,-500.0,0.00012798,2]
[346909601,1735361446860,-500.0,0.00012798,2]
[346909602,1735361446869,-500.0,0.00012798,2]
[346909603,1735361446879,-500.0,0.00012798,2]
[346909604,1735361446889,-500.0,0.00012798,2]
[346909605,1735361446899,-508.88987408,0.00012798,2]
[346909606,1735361446910,-504.86137786,0.00012798,2]
[346909607,1735361446919,-504.84447947,0.00012798,2]
[346909608,1735361446930,-500.0,0.00012798,2]
[346909609,1735361446940,-500.0,0.00012798,2]
[346909610,1735361446949,-191.079361,0.00012798,2]
[346909611,1735361446959,-334.34164832,0.00012798,2]
[346909612,1735361446968,-107.62294282,0.00012798,2]
[346909613,1735361446983,-395.52858821,0.00012798,2]
[346909614,1735361446992,-191.079361,0.00012798,2]
[346909615,1735361447006,-500.0,0.00012798,2]
[346909616,1735361447015,-500.0,0.00012798,2]
[346909617,1735361447025,-415.54262247,0.00012798,2]
[346909618,1735361447036,-84.45737753,0.00012798,2]
[346909619,1735361447046,-500.0,0.00012798,2]
[346909620,1735361447055,-401.84408301,0.00012798,2]
[346909622,1735362022524,339.49,9.634e-05,2]
[346909637,1735362632352,-160.13,0.00010137,2]
[346909638,1735362632363,-246.499994,0.00011288,2]
[346909639,1735362632375,-131.950006,0.00011288,2]
[346909640,1735362632385,-367.51,0.00011288,2]
[346909641,1735362632395,-77.64951064,0.00011288,2]
[346909692,1735362638531,-298.97048936,0.00011288,2]
[346909693,1735362638540,-375.32,0.00011288,2]
[346909694,1735362638550,-381.06,0.00011288,2]
[346909695,1735362638560,-284.41639566,0.00011288,2]
[346909696,1735362638573,-90.92360434,0.00011288,2]
[346909697,1735362638582,-261.90838351,0.00011288,2]
[346909707,1735362640460,-117.83161649,0.00011288,2]
[346909708,1735362640469,-1087.43758322,0.00011288,2]
[346909709,1735362640480,-840.30438827,0.00011288,2]
[346909710,1735362640516,-4482.0,0.00011288,2]
[346909728,1735362646359,-1191.65595105,0.00011288,2]
[346909729,1735362646370,-3167.59,0.00011534,2]
[346909730,1735362646379,-1000.0,0.00011549,2]
[346909731,1735362646389,-350.13,0.00011554,2]
[346909732,1735362646398,-250.0,0.00011577,2]
[346909733,1735362646407,-714.46,0.00011718,2]
[346909734,1735362646416,-207.0,0.0001172,2]
[346909735,1735362646426,-371.71,0.00011778,2]
[346909736,1735362646434,-381.14,0.00011809,2]
[346909737,1735362646444,-378.18,0.00011827,2]
[346909738,1735362646453,-381.8,0.00011827,2]
[346909739,1735362646462,-374.84,0.00011827,2]
[346909740,1735362646471,-367.72,0.00011827,2]
[346909741,1735362646479,-299.56714776,0.00011885,2]
[346909742,1735362646514,-68.46285224,0.00011885,2]
[346909743,1735362646523,-377.24,0.00011885,2]
[346909744,1735362646532,-378.29,0.00011885,2]
[346909745,1735362646540,-102.04303829,0.00011885,2]
[346909746,1735362646555,-279.26696171,0.00011885,2]
[346909747,1735362646564,-309.67303829,0.00011885,2]
[346909748,1735362646740,-59.59696171,0.00011885,2]
[346909749,1735362646749,-370.31,0.00011885,2]
[346909750,1735362646758,-379.54,0.00011885,2]
[346909751,1735362646770,-377.15,0.00011885,2]
[346909752,1735362646779,-38.14293172,0.00011885,2]
[346909753,1735362646790,-338.90706828,0.00011885,2]
[346909754,1735362646799,-339.49,0.00011898,2]
[346909755,1735362646808,-207.0,0.0001209,2]
[346909756,1735362646818,-504.637,0.0001216,2]
[346909757,1735362646827,-3888.0,0.00012166,2]
[346909758,1735362646836,-150.255,0.00012413,2]
[346909759,1735362646845,-207.0,0.0001246,2]
[346909760,1735362646854,-429.2501615,0.00012497,2]
[346909761,1735362646863,-1005.0,0.000125,2]
[346909762,1735362646874,-1000.0,0.000126,2]
[346909763,1735362646883,-404.03282125,0.00012699,2]
[346909801,1735363831653,-330.74,9.838e-05,2]
[346909802,1735363831663,-313.3,0.00010137,2]
[346909803,1735363831673,-1000.0,0.00010655,2]
[346909804,1735363831682,-150.0,0.00011088,2]
[346909805,1735363831691,-250.0,0.00011162,2]
[346909806,1735363831701,-150.0,0.00011179,2]
[346909807,1735363831710,-300.0,0.00011285,2]
[346909808,1735363831720,-10000.0,0.00011286,2]
[346909809,1735363831729,-382.02,0.00011287,2]
[346909810,1735363831739,-382.02,0.00011287,2]
[346909811,1735363831748,-377.96,0.00011287,2]
[346909812,1735363831757,-377.52,0.00011287,2]
[346909813,1735363831767,-373.35,0.00011287,2]
[346909814,1735363831776,-372.23,0.00011287,2]
[346909815,1735363831786,-381.94,0.00011287,2]
[346909816,1735363831795,-381.53,0.00011287,2]
[346909817,1735363831804,-370.66,0.00011287,2]
[346909818,1735363831813,-377.38,0.00011287,2]
[346909819,1735363831822,-371.27,0.00011287,2]
[346909820,1735363831831,-373.68,0.00011287,2]
[346909821,1735363831840,-367.75,0.00011288,2]
[346909822,1735363831851,-376.35,0.00011288,2]
[346909823,1735363831860,-381.06,0.00011288,2]
[346909824,1735363831870,-375.5,0.00011288,2]
[346909825,1735363831880,-372.79,0.00011288,2]
[346909827,1735363831890,-381.79,0.00011288,2]
[346909829,1735363831902,-373.06,0.00011288,2]
[346909831,1735363831911,-369.03,0.00011288,2]
[346909833,1735363831922,-378.5,0.00011288,2]
[346909835,1735363831931,-368.02,0.00011288,2]
[346909837,1735363831940,-374.04,0.00011288,2]
[346909838,1735363831949,-375.69,0.00011288,2]
[346909840,1735363831959,-377.68,0.00011288,2]
[346909842,1735363831969,-374.76,0.00011288,2]
[346909844,1735363831979,-7313.63091818,0.00011288,2]
[346909846,1735363831988,-150.0,0.00011315,2]
[346909848,1735363831997,-1715.93512014,0.0001147,2]
[346909850,1735363832007,-40739.62496755,0.0001147,2]
[346909852,1735363832018,-22972.58797793,0.0001147,2]
[346909854,1735363832029,-1515.18042162,0.0001147,2]
[346909945,1735363837506,-585.50186448,0.0001147,2]
[346909946,1735363837518,-1071.5,0.0001147,2]
[346909947,1735363837568,-28195.46862244,0.0001147,2]
[346909948,1735363837579,-9759.34274228,0.0001147,2]
[346909949,1735363837627,-627.98871025,0.0001147,2]
[346909950,1735363837797,-8802.13511741,0.0001147,2]
[346909951,1735363839508,-806.34000009,0.0001147,2]
[346909952,1735363839678,-2714.09493433,0.0001147,2]
[346909953,1735363839689,-670.96735152,0.0001147,2]
[346909954,1735363839755,-1120.5,0.0001147,2]
[346909962,1735363842600,-612.02336585,0.0001147,2]
[346909963,1735363842612,-3321.77441633,0.0001147,2]
[346909964,1735363842719,-20042.725,0.0001147,2]
[346910048,1735363845665,-4251.35609102,0.00011288,2]
[346910049,1735363845675,-906.46293028,0.0001147,2]
[346910050,1735363845686,-1011.0,0.0001147,2]
[346910051,1735363845697,-20342.24929981,0.0001147,2]
[346910052,1735363845774,-714.65,0.0001147,2]
[346910053,1735363845786,-743.3523116,0.0001147,2]
[346910054,1735363845797,-24913.80981949,0.0001147,2]
[346910055,1735363845808,-62369.020511,0.0001147,2]
[346910056,1735363845849,-279.48088524,0.0001147,2]
[346910057,1735363845860,-1541.10725272,0.0001147,2]
[346910058,1735363992777,-250.0,0.00010916,2]
[346910059,1735363992799,-4251.35509102,0.00011288,2]
[346910060,1735363992820,-300.0,0.00011468,2]
[346910061,1735363992842,-500.0,0.00011469,2]
[346910062,1735363992863,-500.0,0.00011469,2]
[346910063,1735363992885,-1165.99,0.00011469,2]
[346910064,1735363992906,-500.0,0.00011469,2]
[346910065,1735363992930,-368.14,0.00011469,2]
[346910066,1735363992953,-369.16,0.00011469,2]
[346910067,1735363992976,-375.65,0.00011469,2]
[346910068,1735363992999,-379.26,0.00011469,2]
[346910069,1735363993022,-380.96,0.00011469,2]
[346910070,1735363993045,-376.83,0.00011469,2]
[346910071,1735363993068,-371.88,0.0001147,2]
[346910072,1735363993092,-370.59,0.0001147,2]
[346910073,1735363993114,-373.78,0.0001147,2]
[346910074,1735363993137,-162.06425647,0.0001147,2]
[346910075,1735363993159,-500.0,0.00011569,2]
[346910076,1735363993179,-500.0,0.00011569,2]
[346910077,1735363993201,-500.0,0.00011569,2]
[346910078,1735363993223,-500.0,0.00011569,2]
[346910079,1735363993245,-500.0,0.00011569,2]
[346910080,1735363993267,-500.0,0.00011569,2]
[346910081,1735363993288,-500.0,0.00011569,2]
[346910082,1735363993309,-500.0,0.00011569,2]
[346910083,1735363993331,-500.0,0.00011569,2]
[346910084,1735363993352,-500.0,0.00011569,2]
[346910085,1735363993373,-500.0,0.00011569,2]
[346910086,1735363993395,-2134.55,0.00011569,2]
[346910087,1735363993420,-500.0,0.00011569,2]
[346910088,1735363993442,-500.0,0.00011569,2]
[346910089,1735363993463,-500.0,0.00011569,2]
[346910090,1735363993484,-500.0,0.00011569,2]
[346910091,1735363993505,-500.0,0.00011569,2]
[346910092,1735363993527,-500.0,0.00011569,2]
[346910093,1735363993548,-500.0,0.00011569,2]
[346910094,1735363993569,-515.57794599,0.00011569,2]
[346910095,1735363993591,-500.0,0.00011569,2]
[346910096,1735363993612,-500.0,0.00011569,2]
[346910097,1735363993634,-500.0,0.00011569,2]
[346910098,1735363993655,-500.0,0.00011569,2]
[346910099,1735363993676,-385.03331678,0.00011569,2]
[346910100,1735363993697,-1334.95,0.00011569,2]
[346910101,1735363993717,-500.0,0.00011569,2]
[346910102,1735363993739,-500.0,0.00011569,2]
[346910103,1735363993759,-513.57576797,0.00011569,2]
[346910104,1735363993780,-500.0,0.00011569,2]
[346910105,1735363993801,-513.24859633,0.00011569,2]
[346910106,1735363993822,-741.73,0.00011569,2]
[346910107,1735363993844,-500.0,0.00011569,2]
[346910108,1735363993865,-513.06301261,0.00011569,2]
[346910109,1735363993887,-500.0,0.00011569,2]
[346910110,1735363993909,-500.0,0.00011569,2]
[346910111,1735363993930,-500.0,0.00011569,2]
[346910112,1735363993951,-500.0,0.00011569,2]
[346910113,1735363993972,-500.0,0.00011569,2]
[346910114,1735363993993,-500.0,0.00011569,2]
[346910115,1735363994014,-500.0,0.00011569,2]
[346910116,1735363994035,-300.0,0.00011569,2]
[346910117,1735363994057,-358.35190919,0.00011569,2]
[346910118,1735363994078,-501.70080093,0.00011569,2]
[346910119,1735363994100,-528.23,0.00011569,2]
[346910120,1735363994122,-746.71,0.00011569,2]
[346910121,1735363994143,-500.0,0.00011569,2]
[346910122,1735363994164,-500.0,0.00011569,2]
[346910123,1735363994185,-514.8997858,0.00011569,2]
[346910124,1735363994208,-11902.71951691,0.0001157,2]
[346910125,1735363994283,-3784.16048309,0.0001157,2]
[346910126,1735363994305,-152.12171077,0.00011688,2]
[346910127,1735363994326,-150.0,0.00011688,2]
[346910128,1735363994347,-150.28596765,0.00011688,2]
[346910129,1735363994368,-150.11738906,0.00011688,2]
[346910130,1735363994390,-150.0,0.00011688,2]
[346910131,1735363994411,-150.0900143,0.00011688,2]
[346910132,1735363994437,-150.0,0.00011688,2]
[346910133,1735363994458,-150.0,0.00011688,2]
[346910134,1735363994478,-150.196459,0.00011688,2]
[346910135,1735363994499,-150.06178173,0.00011688,2]
[346910136,1735363994520,-150.06469826,0.00011688,2]
[346910137,1735363994542,-150.10553642,0.00011688,2]
[346910138,1735363994565,-150.0,0.00011688,2]
[346910139,1735363994586,-152.12171077,0.00011701,2]
[346910140,1735363994610,-150.0,0.00011702,2]
[346910141,1735363996372,500.0,0.00011469,2]
[346910142,1735363996708,307.58894187,0.00011569,2]
[346910143,1735363997658,257.01641181,0.00011569,2]
[346910144,1735363999854,500.0,0.00011569,2]
[346910145,1735364001086,500.0,0.00011469,2]
[346910146,1735364002373,500.0,0.00011569,2]
[346910147,1735364011278,500.0,0.00011569,2]
[346910148,1735364015604,510.21961866,0.00011569,2]
[346910149,1735364016241,500.0,0.00011569,2]
[346910150,1735364017524,500.0,0.00011569,2]
[346910151,1735364017748,513.88438886,0.00011569,2]
[346910152,1735364019770,500.0,0.00011569,2]
[346910153,1735364020042,500.0,0.00011469,2]
[346910154,1735364020745,500.0,0.00011569,2]
[346910155,1735364023645,179.60318982,0.00011469,2]
[346910156,1735364025869,500.0,0.00011469,2]
[346910157,1735364029580,500.0,0.00011569,2]
[346910158,1735364032833,500.0,0.00011569,2]
[346910159,1735364039618,500.0,0.00011469,2]
[346910160,1735364040093,531.2582222,0.00011569,2]
[346910161,1735364040660,500.0,0.00011569,2]
[346910162,1735364041337,1758.62,0.00011569,2]
[346910163,1735364041670,500.0,0.00011469,2]
[346910164,1735364045570,500.0,0.00011569,2]
[346910165,1735364045611,500.0,0.00011569,2]
[346910166,1735364049473,500.0,0.00011469,2]
[346910167,1735364054289,500.0,0.00011469,2]
[346910168,1735364056529,500.0,0.00011569,2]
[346910169,1735364058456,511.6229335,0.00011569,2]
[346910170,1735364062826,500.0,0.00011569,2]
[346910171,1735364063423,2045.61,0.00011469,2]
[346910172,1735364070443,500.0,0.00011569,2]
[346910173,1735364071958,500.0,0.00011569,2]
[346910174,1735364073429,500.0,0.00011569,2]
[346910175,1735364077466,500.0,0.00011469,2]
[346910176,1735364079310,500.0,0.00011569,2]
[346910177,1735364081445,500.0,0.00011469,2]
[346910178,1735364082713,500.0,0.00011569,2]
[346910179,1735364087273,500.0,0.00011569,2]
[346910180,1735364087446,500.0,0.00011569,2]
[346910181,1735364090502,500.0,0.00011469,2]
[346910182,1735364092014,500.0,0.00011569,2]
[346910183,1735364095207,500.0,0.00011569,2]
[346910184,1735364098348,500.0,0.00011469,2]
[346910185,1735364100086,490.48461793,0.00011569,2]
[346910186,1735364104150,2000.0,0.00011702,2]
[346910187,1735364105600,500.0,0.00011569,2]
[346910188,1735364107149,1279.32,0.00011469,2]
[346910189,1735364107701,200.0,0.00011702,2]
[346910190,1735364113341,158.93,0.00010977,2]
[346910191,1735364113975,500.0,0.00011569,2]
[346910192,1735364114196,469.51776041,0.00011569,2]
[346910193,1735364117241,500.0,0.00011569,2]
[346910194,1735364118220,500.0,0.00011569,2]
[346910195,1735364121396,500.0,0.00011569,2]
[346910196,1735364124183,500.0,0.00011469,2]
[346910197,1735364126492,870.87,0.00011569,2]
[346910198,1735364128077,536.91744295,0.00011569,2]
[346910199,1735364132013,500.0,0.00011569,2]